Cogmind - Beta 10.1 @@@ ROGUE MODE // 2020.10.08 @ 14:42:12 Player: 3.14 Result: Core destroyed Performance ------------- Evolutions (0) 0 Regions Visited (4) 800 Robots Destroyed (8) 40 Value Destroyed (204) 204 Prototype IDs (0) 0 Alien Tech Used (0) 0 Bonus (-11) -11 TOTAL SCORE: 1033 Bonus ------- Friendly Fire -11 Cogmind --------- Core Integrity 0/250 Matter 300/300 Energy 100/100 System Corruption 4% Temperature Cool (0) Movement Core (50) Location -9/Mines Parts ------- > --- POWER (1) -------- (None) > --- PROPULSION (2) --- (None) > --- UTILITY (2) ------ (None) > --- WEAPON (2) ------- (None) > --- INVENTORY (4) ---- Light Nuclear Core Aluminum Leg Aluminum Leg Medium Storage Unit Peak State ------------ > --- POWER ------------ Ion Engine > --- PROPULSION ------- Aluminum Leg Aluminum Leg > --- UTILITY ---------- Heat Sink Medium Storage Unit > --- WEAPON ----------- EM Pulse Gun Assault Rifle > --- INVENTORY -------- Light Nuclear Core Aluminum Leg Aluminum Leg Aluminum Leg High-capacity Battery High-capacity Battery Medium Laser Mining Laser [Rating: 8] Favorites ----------- Power Ion Engine Engine Ion Engine Propulsion Aluminum Leg Leg Aluminum Leg Utility Small Storage Unit Device Tractor Beam Storage Small Storage Unit Weapon Assault Rifle Energy Gun EM Pulse Gun Ballistic Gun Assault Rifle Build | -11 -10 -10 -10 -9 ------- Run | Scr Mat Min Exi Min Slots Evolved . | . . . . . Power . | . . . . . Propulsion . | . . . . . Utility . | . . . . . Weapon . | . . . . . Parts Attached 14 | 7 1 3 2 1 Power 2 | 1 1 . . . Engine 2 | 1 1 . . . Core . | . . . . . Reactor . | . . . . . Propulsion 3 | 2 . 1 . . Treads . | . . . . . Leg 3 | 2 . 1 . . Wheel . | . . . . . Hover . | . . . . . Flight . | . . . . . Utility 5 | 2 . 1 2 . Device 2 | 1 . 1 . . Storage 3 | 1 . . 2 . Processor . | . . . . . Hackware . | . . . . . Protection . | . . . . . Artifact . | . . . . . Weapon 4 | 2 . 1 . 1 Energy Gun 2 | . . 1 . 1 Energy Cannon . | . . . . . Ballistic Gun 2 | 2 . . . . Ballistic Cannon . | . . . . . Launcher . | . . . . . Special Weapon . | . . . . . Impact Weapon . | . . . . . Slashing Weapon . | . . . . . Piercing Weapon . | . . . . . Special Melee Weapon . | . . . . . Unidentified Prototypes . | . . . . . Parts Lost 5 | . . 1 . 4 Power 1 | . . . . 1 Propulsion 2 | . . . . 2 Utility 1 | . . 1 . . Weapon 1 | . . . . 1 Highest Loss Streak 4 | . . 1 . 4 Average Slot Usage (%) 98 | . 100 99 100 60 Engine 13 | . 14 14 14 7 Leg 27 | . 28 28 28 21 Device 11 | . 14 13 7 . Storage 16 | . 14 14 20 14 Energy Gun 7 | . . 8 14 10 Ballistic Gun 19 | . 28 19 14 7 Naked Turns 10 | . . . . 10 Heaviest Build 25 | 14 14 14 25 25 Greatest Support 20 | 20 20 20 20 20 Greatest Overweight (x) 1 | . . . 1 1 Average Overweight (x) . | . . . . . Largest Inventory Capacity 12 | 6 6 6 12 12 Average Capacity 7 | 5 6 6 9 8 Most Carried 8 | 4 6 6 8 8 Average Carried 6 | 2 5 5 7 6 Final Capacity 12 | 6 6 6 12 4 Final Carried 8 | 4 6 6 8 4 Class Distribution -------------------- 100% | Mutant Dominant Class ---------------- Mutant | -10/Materials Mutant | -10/Mines Mutant | -10/Exiles Mutant | -9/Mines Resources | -11 -10 -10 -10 -9 ----------- Run | Scr Mat Min Exi Min Matter Collected 499 | 312 76 73 20 18 Remotely 128 | 52 76 . . . Salvage Created 369 | 98 136 85 . 50 Parts 17 | 2 8 4 . 3 Haulers Intercepted 1 | . 1 . . . Recyclers Shooed 2 | . 1 1 . . Parts Field Recycled . | . . . . . Retrieved Matter . | . . . . . Parts Self-Destructed . | . . . . . Prevented . | . . . . . Kills | -11 -10 -10 -10 -9 ------- Run | Scr Mat Min Exi Min Combat Hostiles Destroyed 6 | . 2 2 . 2 Guns 6 | . 2 2 . 2 Classes Destroyed 4 | 1 2 . . 1 Hauler 1 | . 1 . . . Recycler 1 | 1 . . . . Grunt 5 | . 2 2 . 1 Assembled 1 | . . . . 1 Best Kill Streak 2 | 1 1 2 . 2 Combat Bots Only 2 | . 1 2 . 2 Max Kills in Single Turn 1 | 1 1 1 . 1 Gunslinging . | . . . . . Exploded . | . . . . . Melee . | . . . . . Uniques/NPCs Destroyed . | . . . . . Combat | -11 -10 -10 -10 -9 -------- Run | Scr Mat Min Exi Min Damage Taken 779 | . 147 124 . 508 Core 250 | . 23 . . 227 Absorbed by Shields . | . . . . . Core Remaining (%) 100 | 100 . . . . Volleys Fired 32 | 7 11 8 . 6 Largest 2 | 2 2 2 . 2 Hottest 60 | 40 40 40 . 60 Shots Fired 64 | 14 22 16 . 12 Gun 64 | 14 22 16 . 12 Cannon . | . . . . . Launcher . | . . . . . Special . | . . . . . Kinetic 58 | 14 22 16 . 6 Thermal . | . . . . . Explosive . | . . . . . Electromagnetic 6 | . . . . 6 Robot Hit Streak 5 | 5 5 5 . 4 Robot Miss Streak 3 | 2 2 3 . 2 Penetration Max . | . . . . . Secondary Targets 2 | . . . . 2 Max Gunslinging Chain 1 | . . . . 1 Shots Hit Robots 39 | 9 13 9 . 8 Core Hits 19 | 2 7 4 . 6 Critical Hits 1 | . 1 . . . Critical Kills . | . . . . . Critical Parts Destroyed 1 | . 1 . . . Melee Attacks . | . . . . . Impact . | . . . . . Slashing . | . . . . . Piercing . | . . . . . Sneak Attacks . | . . . . . Combat Hostiles . | . . . . . Follow-up Attacks . | . . . . . Damage Inflicted 532 | 118 184 98 . 132 Guns 517 | 118 184 98 . 117 Cannons . | . . . . . Explosions . | . . . . . Melee . | . . . . . Ramming 15 | . . . . 15 Kinetic 464 | 118 184 98 . 64 Thermal . | . . . . . Explosive . | . . . . . Electromagnetic 53 | . . . . 53 Impact . | . . . . . Slashing . | . . . . . Piercing . | . . . . . Highest Corruption 4 | . . . . 4 Average Corruption 4 | . . . . 4 Corruption Purged . | . . . . . Effects 1 | . . . . 1 Matter Fused 1 | . . . . 1 Overload Shots . | . . . . . Overflow Damage . | . . . . . Projectiles . | . . . . . Explosions . | . . . . . Melee . | . . . . . Knockbacks . | . . . . . Impact . | . . . . . Kinetic . | . . . . . Secondary . | . . . . . Self-Inflicted Damage 7 | . . . . 7 Shots . | . . . . . Rammed 3 | . . . . 3 Targets Rammed 3 | . . . . 3 Kicked . | . . . . . Crushed . | . . . . . Highest Temperature 8 | . 2 8 . . Average Temperature 2 | . 2 3 . . Received Heat Transfer 273 | . 84 69 . 120 Siege Activations . | . . . . . Robots Corrupted . | . . . . . Combat Hostiles . | . . . . . Parts Fried . | . . . . . Impact Corruptions . | . . . . . Robots Melted . | . . . . . Combat Hostiles . | . . . . . Parts Melted . | . . . . . Heat Transferred . | . . . . . Parts Sabotaged . | . . . . . Parts Stolen . | . . . . . Parts Stripped . | . . . . . Power Chain Reactions . | . . . . . Missiles Intercepted . | . . . . . Alert | -11 -10 -10 -10 -9 ------- Run | Scr Mat Min Exi Min Peak Influence 82 | 5 82 71 . 20 Initial 31 | . 3 31 . . Average 45 | 1 50 57 . 12 Maximum Alert Level . | . . . . . Low Security (%) 100 | 100 100 100 . 100 Level 1 . | . . . . . Level 2 . | . . . . . Level 3 . | . . . . . Level 4 . | . . . . . Level 5 . | . . . . . High Security . | . . . . . Max Security . | . . . . . Squads Dispatched . | . . . . . Investigation . | . . . . . Extermination . | . . . . . Reinforcement . | . . . . . Assault . | . . . . . Garrison . | . . . . . Intercept . | . . . . . Construction Impeded . | . . . . . Haulers Reinforced . | . . . . . Stealth | -11 -10 -10 -10 -9 --------- Run | Scr Mat Min Exi Min Distress Signals . | . . . . . Communications Jammed . | . . . . . Distress Signals . | . . . . . Times Spotted 27 | . 4 2 . 21 Peak Tracking Total 14 | . 2 2 . 14 Tactical Retreats 1 | . 1 . . . Traps | -11 -10 -10 -10 -9 ------- Run | Scr Mat Min Exi Min Traps Triggered . | . . . . . Indirectly . | . . . . . Trap Hack Attempts . | . . . . . Triggered . | . . . . . Disarmed . | . . . . . Reprogrammed . | . . . . . Reused . | . . . . . Traps Extracted . | . . . . . Installed . | . . . . . Triggered . | . . . . . Machines | -11 -10 -10 -10 -9 ---------- Run | Scr Mat Min Exi Min Machines Disabled . | . . . . . Max in Single Turn . | . . . . . Machines Sabotaged . | . . . . . Garrisons Compromised . | . . . . . Overloaded Fab Kills . | . . . . . Fab Network Shutdowns . | . . . . . Hacking | -11 -10 -10 -10 -9 --------- Run | Scr Mat Min Exi Min Machines Accessed 3 | . 2 . 1 . Terminals 2 | . 2 . . . Fabricators . | . . . . . Repair Stations . | . . . . . Recycling Units . | . . . . . Scanalyzers . | . . . . . Garrison Access . | . . . . . Total Hacks 6 | . 5 . 1 . Successful 2 | . 1 . 1 . Failed 4 | . 4 . . . Catastrophic . | . . . . . Database Lockouts . | . . . . . Manual 5 | . 5 . . . Terminals 5 | . 5 . . . Fabricators . | . . . . . Repair Stations . | . . . . . Recycling Units . | . . . . . Scanalyzers . | . . . . . Garrison Access . | . . . . . Terminal Hacks 2 | . 1 . 1 . Record 1 | . . . 1 . Part Schematic 1 | . 1 . . . Fabricator Hacks . | . . . . . Repair Station Hacks . | . . . . . Recycling Unit Hacks . | . . . . . Scanalyzer . | . . . . . Garrison Access Hacks . | . . . . . Unauthorized Hacks . | . . . . . Terminals . | . . . . . Fabricators . | . . . . . Repair Stations . | . . . . . Recycling Units . | . . . . . Scanalyzers . | . . . . . Garrison Access . | . . . . . Data Cores Recovered . | . . . . . Used . | . . . . . Hacking Detections 2 | . 2 . . . Full Trace Events . | . . . . . Feedback Events . | . . . . . Feedback Blocked . | . . . . . Robot Schematics Acquired . | . . . . . Robots Built . | . . . . . Matter . | . . . . . Time . | . . . . . Total Robot Build Rating . | . . . . . Part Schematics Acquired 1 | . 1 . . . Parts Built . | . . . . . Matter . | . . . . . Time . | . . . . . Total Part Build Rating . | . . . . . Parts Repaired . | . . . . . Time . | . . . . . Parts Recycled . | . . . . . Recycled Matter . | . . . . . Retrieved Matter . | . . . . . Retrieved Components . | . . . . . Parts Scanalyzed . | . . . . . Part Schematics Acquired . | . . . . . Parts Damaged . | . . . . . Bothacking | -11 -10 -10 -10 -9 ------------ Run | Scr Mat Min Exi Min Used RIF Installer . | . . . . . Robots Hacked . | . . . . . Non-combat . | . . . . . Combat . | . . . . . Robot Hacks Applied . | . . . . . Relay Couplers Released . | . . . . . Robots Rewired . | . . . . . Allies Hacked . | . . . . . Hacks Repelled . | . . . . . Allies | -11 -10 -10 -10 -9 -------- Run | Scr Mat Min Exi Min Total Allies 2 | . . 2 . . Largest Group 2 | . . 2 2 . Highest-Rated Group 38 | . . 38 38 . Highest-Rated Ally 31 | . . 31 31 . Total Orders . | . . . . . Ally Attacks . | . . . . . Total Damage . | . . . . . Kills . | . . . . . Allies Corrupted . | . . . . . Allies Melted . | . . . . . Intel | -11 -10 -10 -10 -9 ------- Run | Scr Mat Min Exi Min Robot Analysis Total . | . . . . . Derelict Logs Recovered 1 | . . 1 . . Drone Launches . | . . . . . Drone Recoveries . | . . . . . Exploration | -11 -10 -10 -10 -9 ------------- Run | Scr Mat Min Exi Min Turns Passed 1341 | 116 379 398 407 41 Spaces Moved 966 | 70 277 291 304 24 Core 24 | 4 . . . 20 Treads . | . . . . . Legs 942 | 66 277 291 304 4 Wheels . | . . . . . Hover . | . . . . . Flight . | . . . . . Fastest Speed 50 | 50 120 120 120 50 Average Speed 122 | 116 120 120 132 65 Slowest Speed 150 | 120 120 120 150 150 Overloaded Moves . | . . . . . Propulsion Burnouts . | . . . . . Robots Hopped . | . . . . . Cave-ins Triggered . | . . . . . Exploration Rate (%) 35 | 4 32 73 62 8 Regions Visited 4 Branch Regions 3 Pre-discovered Areas 2 | . . 1 1 . Known Exits Taken . | . . . . . Unknown Exits Taken 4 | 1 1 1 1 . Scrap Searched 2 | . . 2 . . Spaces Dug . | . . . . . Terrain Destroyed . | . . . . . Melee . | . . . . . Projectile . | . . . . . AOE . | . . . . . Terrain Rammed . | . . . . . Walls Destroyed . | . . . . . Machines Disabled . | . . . . . Actions | -11 -10 -10 -10 -9 --------- Run | Scr Mat Min Exi Min Total 1066 | 87 303 327 311 38 Wait 25 | . 8 17 . . Move 962 | 69 276 290 303 24 Hop . | . . . . . Pick Up 16 | 4 4 4 3 1 Fast Attach 10 | 7 . 1 1 1 Attach 1 | . . 1 . . Detach . | . . . . . Swap 3 | . 1 1 1 . Drop 15 | . 3 5 3 4 Fire 32 | 7 11 8 . 6 Melee . | . . . . . Ram 2 | . . . . 2 Kick . | . . . . . Crush . | . . . . . Escape Stasis . | . . . . . Rewire . | . . . . . Trap . | . . . . . Miscellaneous . | . . . . . Route ------- -11/Scrapyard -10/Materials (discovered 2 exits: [*Mat] / [*Min]) -10/Mines (discovered 2 exits: [*Mat] / *Exi) -10/Exiles -9/Mines History --------- Turn | Location | Event 6 | -11/Scrapyard | Discovered new exit (range 16) 117 | -11/Scrapyard | Entered Materials 312 | -10/Materials | Build established: Mutant 407 | -10/Materials | Discovered new exit (range 5) 434 | -10/Materials | Discovered new exit (range 3) 496 | -10/Materials | Entered Mines 555 | -10/Mines | Learned location of Storage (-7) 774 | -10/Mines | Discovered new exit (range 7) 880 | -10/Mines | Deemed a non-threat by the Exiles lab entrance 880 | -10/Mines | Discovered new exit (range 5) 894 | -10/Mines | Entered Exiles 894 | -10/Exiles | Accompanied by 2 allies 924 | -10/Exiles | Led the pair of lost Derelicts to a safe place 924 | -10/Exiles | Met 8R-AWN 944 | -10/Exiles | Met EX-HEX 1035 | -10/Exiles | Met EX-DEC 1057 | -10/Exiles | Met EX-BIN 1162 | -10/Exiles | Learned location of Zion (-7) 1289 | -10/Exiles | Discovered new exit (range 10) 1301 | -10/Exiles | Entered Mines 1302 | -9/Mines | Assembled infested the area 1307 | -9/Mines | Assisted by a Guerilla fighting off Assembled 1333 | -9/Mines | Core integrity fell below 50% 1340 | -9/Mines | Core integrity fell below 20% 1342 | -9/Mines | Core destroyed Last Messages --------------- 01332_ Slammed into as-42557. 01332_ Aluminum Leg destroyed. 01332_ System corrupted by crushing effect (+4). 01333_ System corrupted: Matter fused (-9). 01333_ Acquired 9 matter. 01333_ Slammed into as-33367. 01334_ Acquired 7 matter. 01334_ Acquired 2 matter. 01339_ C-30 ARC bursts open, deploying its payload. 01339_ D-53 Grenadier unfolds itself. 01339_ as-43021 destroyed. 01340_ The unstable cave ceiling collapses. 01340_ as-49919 destroyed. 01340_ as-22764 destroyed. 01340_ as-97038 destroyed. 01341_ as-42557 destroyed. 01341_ as-11388 destroyed. 01341_ as-68821 destroyed. 01342_ Slammed into U-05 Engineer. 01342_ Destabilizing: Core damaged (-7). Map ----- +----------------------------------------------------+ | | | | | | | | | ????????????????????????????????????????? | | ?????#??????????????????????????????????? | | ????# #######???????????????????????????? | | ?????#!!==%=#???????????????????????????? | | ?????#[!% #???????????????????????????? | | ?????# | % #???????????????????????????? | | ?????#[ #???????????????????????????? | | ?????# #???????????????????????????? | | ?????# %= #???????????????????????????? | | ?????# #;a#### #?????????????????????? | | ?????# # < #??????????????????????? | | ?????## a#### #??????????????????????? | | ??????## a #####???????????????????????? | | ?????## a ##??????????????????????? | | ?????# #??????????????????????? | | ?????# [aa ??????????????????????? | | ?????# !% #??????????????????????? | | ???# ## = # #??????????????????????? | | ??# ?# #### #??????????????????????? | | ??# ??# ???##dd #??????????????????????? | | ??# ??? ????# #########???????????????? | | ??# ?? #????# @u #???????????? | | ??#?? ?????# u r #???????????? | | ????# ?????############# #???????????? | | ????# ????????????????????????????????? | | ????## ????????????????????????????????? | | ?????? ????????????????????????????????? | | ?????##?????????????????????????????????? | | ????????????????????????????????????????? | | ????????????????????????????????????????? | | ????????????????????????????????????????? | | ????????????????????????????????????????? | | ????????????????????????????????????????? | | ????????????????????????????????????????? | | ????????????????????????????????????????? | | ????????????????????????????????????????? | | ????????????????????????????????????????? | | ????????????????????????????????????????? | | ????????????????????????????????????????? | | ????????????????????????????????????????? | | ????????????????????????????????????????? | | ????????????????????????????????????????? | | ????????????????????????????????????????? | | ????????????????????????????????????????? | | ????????????????????????????????????????? | | ????????????????????????????????????????? | +----------------------------------------------------+ Best States ------------- Heat Dissipation 35 Energy Generation 10 Energy Capacity 250 Matter Stores 300 Matter Capacity 300 Sight Range 16 Terrain Scan Density 10 Evasion (%) 50 Item Schematics ----------------- Lrg. Storage Unit | -10/Materials | Hacked Robot Schematics ------------------ None Fabricated ------------ Nothing Alien Tech Used ----------------- None Achievements -------------- None Challenges ------------ None Game ------ Seed DerelictBoreDatajack Manual? 0 Play Time 00:07:10 Cumulative 642.5 hours Start 2020.10.08 @ 14:36:34 End 2020.10.08 @ 14:42:12 Sessions 1 Manual Loads 0 Difficulty Rogue Special Mode None Game No. 979 Rogue 979 Adventurer 0 Explorer 0 Win Type - Total 62 Types 38/1/8/11/4/0/0/0/0 Lore% 94 Gallery% 94 Achievement% 83 Wizard Run 0 Options --------- ASCII 1 Keyboard 0 Movement Numpad Keybinds 0 Fullscreen 0 Font 14/SmallcapsGlow Map View 76x50 Tactical HUD 1 Map Filters NONE Filters NONE Steam 1 RUN: 1e816b02-804e-4df0-95e9-c8e2a37e20d1